Department Family,Entity,Date,Expenses Type,Expense Area,Supplier,Transaction Number,  Total  ,
Department of Health,The Christie NHS Foundation Trust,08/06/2020,Rates,Estates & Facilities,DD M/CR CITY COUNCIL (RATES),0000645509,"79,491.00",
Department of Health,The Christie NHS Foundation Trust,08/06/2020,Rates,The Christie NHS FT Balance,DD M/CR CITY COUNCIL (RATES),BAN9106624,"80,491.00",
Department of Health,The Christie NHS Foundation Trust,15/06/2020,NHS Resolution, Quality & Standards,NHS LITIGATION AUTHORITY,0000646411,"152,871.30",
Department of Health,The Christie NHS Foundation Trust,04/06/2020,Medical Equipment,Capital,UNFORS RAYSAFE AB,0000644580,"25,070.00",
Department of Health,The Christie NHS Foundation Trust,25/06/2020,Macmillan SLA, Manchester Cancer,WRIGHTINGTON WIGAN AND LEIGH NHS FT,0000645618,"977,587.72",
Department of Health,The Christie NHS Foundation Trust,18/06/2020,Wider Team Engagement,Capital,AIRE LOGIC LIMITED,0000645304,"63,397.00",
Department of Health,The Christie NHS Foundation Trust,18/06/2020,Drugs, Drugs,ALCURA UK LIMITED,0000645898,"84,484.76",
Department of Health,The Christie NHS Foundation Trust,18/06/2020,PET-CT Recharge,Christie Medical Physics,ALLIANCE MEDICAL LTD,0000645460,"84,475.00",
Department of Health,The Christie NHS Foundation Trust,11/06/2020, Drugs, Drugs,BAXTER HEALTHCARE LTD,0000644621,"124,707.23",
Department of Health,The Christie NHS Foundation Trust,11/06/2020, Drugs, Drugs,BAXTER HEALTHCARE LTD,0000644626,"69,543.29",
Department of Health,The Christie NHS Foundation Trust,11/06/2020, Drugs, Drugs,BAXTER HEALTHCARE LTD,0000644633,"98,425.82",
Department of Health,The Christie NHS Foundation Trust,11/06/2020, Drugs, Drugs,BAXTER HEALTHCARE LTD,0000644707,"133,879.49",
Department of Health,The Christie NHS Foundation Trust,11/06/2020, Drugs, Drugs,BAXTER HEALTHCARE LTD,0000645000,"49,727.08",
Department of Health,The Christie NHS Foundation Trust,11/06/2020, Drugs, Drugs,BAXTER HEALTHCARE LTD,0000645008,"84,240.28",
Department of Health,The Christie NHS Foundation Trust,11/06/2020, Drugs, Drugs,BAXTER HEALTHCARE LTD,0000645019,"78,766.78",
Department of Health,The Christie NHS Foundation Trust,11/06/2020, Drugs, Drugs,BAXTER HEALTHCARE LTD,0000645113,"166,306.88",
Department of Health,The Christie NHS Foundation Trust,11/06/2020,Testing Software Services,Digital Services,CIGNITI TECHNOLOGIES UK LTD,0000645364,"23,134.00",
Department of Health,The Christie NHS Foundation Trust,01/06/2020, Drugs, Drugs,DD BAXTER HEALTHCARE LTD,0000646546,"351,380.40",
Department of Health,The Christie NHS Foundation Trust,15/06/2020,Blood Products,Network Services,DD NHS BLOOD AND TRANSPLANT,0000646023,"188,268.30",
Department of Health,The Christie NHS Foundation Trust,11/06/2020, Drugs, Drugs,EAST CHESHIRE NHS TRUST,0000636537,"93,649.43",
Department of Health,The Christie NHS Foundation Trust,11/06/2020, Drugs, Drugs,EAST CHESHIRE NHS TRUST,0000639015,"74,664.67",
Department of Health,The Christie NHS Foundation Trust,04/06/2020,Electricity Invoice - Apr 2020,Network Services,EDF ENERGY,0000644468,"51,170.87",
Department of Health,The Christie NHS Foundation Trust,18/06/2020,Electricity Invoice - May 2020,Network Services,EDF ENERGY,0000645336,"35,512.73",
Department of Health,The Christie NHS Foundation Trust,18/06/2020,Electricity Invoice - May 2020,Network Services,EDF ENERGY,0000645333,"54,195.31",
Department of Health,The Christie NHS Foundation Trust,11/06/2020,Equipment Maintenance ,Network Services,ELEKTA  LTD,0000645161,"1,381,214.66",
Department of Health,The Christie NHS Foundation Trust,18/06/2020,Medical Equipment, Capital,ELEKTA  LTD,0000645587,"40,842.99",
Department of Health,The Christie NHS Foundation Trust,11/06/2020,Software Equipment,Digital Services,EUROPEAN ELECTRONIQUE LTD,0000645506,"23,844.64",
Department of Health,The Christie NHS Foundation Trust,11/06/2020,Software Equipment,Digital Services,EUROPEAN ELECTRONIQUE LTD,0000645507,"23,054.99",
Department of Health,The Christie NHS Foundation Trust,04/06/2020,Computer Equipment,Capital,FUKUDA DENSHI UK LTD,0000644475,"113,024.40",
Department of Health,The Christie NHS Foundation Trust,18/06/2020,Construction Works,Capital,GALLIFORD TRY BUILDING LIMITED,0000645492,"99,340.15",
Department of Health,The Christie NHS Foundation Trust,18/06/2020,Medical Equipment,Capital,GETINGE UK LIMITED,0000645453,"41,640.00",
Department of Health,The Christie NHS Foundation Trust,04/06/2020, Drugs, Drugs,HEALTHCARE AT HOME LTD,0000645116,"30,612.00",
Department of Health,The Christie NHS Foundation Trust,04/06/2020,Construction Works,Capital,HIGH LEVEL MAINTENANCE SOLUTIONS LTD,0000644545,"39,224.24",
Department of Health,The Christie NHS Foundation Trust,11/06/2020,Construction Works,Capital,HIGH LEVEL MAINTENANCE SOLUTIONS LTD,0000645151,"22,610.00",
Department of Health,The Christie NHS Foundation Trust,11/06/2020,Transportation Costs,Capital,HIGH LEVEL MAINTENANCE SOLUTIONS LTD,0000643708,"29,208.00",
Department of Health,The Christie NHS Foundation Trust,18/06/2020,Construction Works,Capital,HIGH LEVEL MAINTENANCE SOLUTIONS LTD,0000643706,"46,164.00",
Department of Health,The Christie NHS Foundation Trust,11/06/2020,Technology Equipment, Digital Services,HP INC UK LIMITED,0000644997,"88,410.60",
Department of Health,The Christie NHS Foundation Trust,18/06/2020,IT Software Package, Digital Services,INSIGHT DIRECT (UK) LTD,0000645462,"21,150.00",
Department of Health,The Christie NHS Foundation Trust,25/06/2020,Project Management Works,Capital,INTEGRATED HEALTH PROJECTS,0000645970,"152,610.83",
Department of Health,The Christie NHS Foundation Trust,30/06/2020,Ward Construction ,Capital,INTEGRATED HEALTH PROJECTS,0000646399,"852,000.00",
Department of Health,The Christie NHS Foundation Trust,25/06/2020,Project Management Works,Capital,INTEGRATED HEALTH PROJECTS,0000645989,"1,445,327.05",
Department of Health,The Christie NHS Foundation Trust,25/06/2020,Project Management Works,Capital,INTEGRATED HEALTH PROJECTS,0000645818,"791,654.98",
Department of Health,The Christie NHS Foundation Trust,04/06/2020,Construction Works,Capital,INTEGRATED HEALTH PROJECTS,0000644616,"320,321.63",
Department of Health,The Christie NHS Foundation Trust,04/06/2020,Construction Works,Capital,INTEGRATED HEALTH PROJECTS,0000644164,"1,373,749.43",
Department of Health,The Christie NHS Foundation Trust,25/06/2020,Project Management Works,Capital,INTEGRATED HEALTH PROJECTS,0000646201,"94,225.90",
Department of Health,The Christie NHS Foundation Trust,04/06/2020,Construction Works,Capital,INTEGRATED HEALTH PROJECTS,0000644615,"622,901.35",
Department of Health,The Christie NHS Foundation Trust,11/06/2020,Project Management Works,Capital,INTEGRATED HEALTH PROJECTS,0000644973,"788,713.67",
Department of Health,The Christie NHS Foundation Trust,25/06/2020,Software Equipment,Research & Innovation,ISANSYS LIFECARE LTD,0000646165,"71,080.00",
Department of Health,The Christie NHS Foundation Trust,18/06/2020,Audit Fees Q4 2019-20, Finance & Business Developm,LIVERPOOL UNIVERSITY HOSPITALS FT,0000641224,"25,593.75",
Department of Health,The Christie NHS Foundation Trust,11/06/2020,Support Service Contract,COVID-19,MAX 20 PROJECT SOLUTIONS LTD,0000645214,"40,000.00",
Department of Health,The Christie NHS Foundation Trust,23/06/2020,SLA 2020/21 Invoice, Network Services,MID CHESHIRE HOSPITALS NHS FT,0000645433,"75,044.20",
Department of Health,The Christie NHS Foundation Trust,04/06/2020,Blood Products, Network Services,NHS BLOOD AND TRANSPLANT,0000640574,"28,099.93",
Department of Health,The Christie NHS Foundation Trust,04/06/2020,All Wards & Departments,The Christie NHS FT Balance,NHS SUPPLY CHAIN,0000644968,"47,497.20",
Department of Health,The Christie NHS Foundation Trust,04/06/2020,All Wards & Departments,The Christie NHS FT Balance,NHS SUPPLY CHAIN,0000644972,"40,164.32",
Department of Health,The Christie NHS Foundation Trust,11/06/2020,All Wards & Departments,The Christie NHS FT Balance,NHS SUPPLY CHAIN,0000645252,"48,134.52",
Department of Health,The Christie NHS Foundation Trust,11/06/2020,All Wards & Departments,The Christie NHS FT Balance,NHS SUPPLY CHAIN,0000645253,"36,601.03",
Department of Health,The Christie NHS Foundation Trust,11/06/2020,Medical Equipment,Clin Support & Spec Surgery,NHS SUPPLY CHAIN,0000645187,"213,748.01",
Department of Health,The Christie NHS Foundation Trust,11/06/2020, Drugs, Drugs,NOVARTIS PHARMACEUTICALS UK LTD,0000645668,"257,184.00",
Department of Health,The Christie NHS Foundation Trust,11/06/2020, Drugs, Drugs,NOVARTIS PHARMACEUTICALS UK LTD,0000645346,"257,184.00",
Department of Health,The Christie NHS Foundation Trust,11/06/2020, Drugs, Drugs,NOVARTIS PHARMACEUTICALS UK LTD,0000645348,"257,184.00",
Department of Health,The Christie NHS Foundation Trust,11/06/2020, Drugs, Drugs,NOVARTIS PHARMACEUTICALS UK LTD,0000645997,"257,184.00",
Department of Health,The Christie NHS Foundation Trust,18/06/2020,Technology Equipment,COVID-19,PARITY COMPUTERS LTD,0000645808,"25,376.40",
Department of Health,The Christie NHS Foundation Trust,11/06/2020,Maintenance Contract, Network Services,PTW UK LTD,0000644663,"47,560.00",
Department of Health,The Christie NHS Foundation Trust,04/06/2020,Construction Works, Other Income Levies and Gra,ST HELENS & KNOWSLEY HOSPITALS NHS TRUST,0000644489,"291,000.00",
Department of Health,The Christie NHS Foundation Trust,18/06/2020,System Support Software, Digital Services,SYSTEM C HEALTHCARE,0000645677,"28,018.18",
Department of Health,The Christie NHS Foundation Trust,11/06/2020, Drugs, Drugs,THE CHRISTIE CLINIC (HCA),0000641479,"36,180.00",
Department of Health,The Christie NHS Foundation Trust,25/06/2020,Pathology Testing Services,Christie Pathology Partner,THE CHRISTIE PATHOLOGY PARTNERSHIP LLP,0000645397,"377,837.20",
Department of Health,The Christie NHS Foundation Trust,25/06/2020,Pathology Testing Services,Clin Support & Spec Surgery,THE CHRISTIE PATHOLOGY PARTNERSHIP LLP,0000644127,"30,001.78",
Department of Health,The Christie NHS Foundation Trust,25/06/2020,Pathology Testing Services,Christie Pathology Partner,THE CHRISTIE PATHOLOGY PARTNERSHIP LLP,0000645905,"379,726.40",
Department of Health,The Christie NHS Foundation Trust,25/06/2020,Pathology Testing Services,Christie Pathology Partner,THE CHRISTIE PATHOLOGY PARTNERSHIP LLP,0000644568,"341,750.36",
Department of Health,The Christie NHS Foundation Trust,11/06/2020,Cleaning Works, Estates & Facilities,VENTILATION SURVEYS AND SERVICES LTD,0000643396,"23,800.00",
